[Event "*** SCC Grand Prix: Titled Tuesday Blitz"]
[Site "Chess.com"]
[Date "2020.07.14"]
[Round "9"]
[White "teacher4chess"]
[Black "Morshynska"]
[Result "1/2-1/2"]
[WhiteElo "2025"]
[BlackElo "2173"]
[TimeControl "180+1"]
[EndTime "11:49:29 PDT"]
[Termination "Game drawn - insufficient material"]

1. d4 {[%clk 0:03:00]} 1... d5 {[%clk 0:02:59.4]} 2. c4 {[%clk 0:02:59.2]} 2...
c6 {[%clk 0:02:59.3]} 3. Nf3 {[%clk 0:02:58.2]} 3... Nf6 {[%clk 0:02:58.9]} 4.
e3 {[%clk 0:02:58.4]} 4... e6 {[%clk 0:02:58.8]} 5. Nc3 {[%clk 0:02:52.4]} 5...
Nbd7 {[%clk 0:02:58.7]} 6. Qc2 {[%clk 0:02:51.8]} 6... Bd6 {[%clk 0:02:58.2]} 7.
b3 {[%clk 0:02:51.7]} 7... O-O {[%clk 0:02:56.9]} 8. Bb2 {[%clk 0:02:51.9]} 8...
b6 {[%clk 0:02:51.2]} 9. Bd3 {[%clk 0:02:51]} 9... Bb7 {[%clk 0:02:48.4]} 10.
O-O {[%clk 0:02:46.2]} 10... Rc8 {[%clk 0:02:43.6]} 11. Rad1 {[%clk 0:02:44.8]}
11... Qe7 {[%clk 0:02:39.4]} 12. e4 {[%clk 0:02:38.1]} 12... dxe4 {[%clk
0:02:37.6]} 13. Nxe4 {[%clk 0:02:38.4]} 13... Nxe4 {[%clk 0:02:38.5]} 14. Bxe4
{[%clk 0:02:38.6]} 14... Nf6 {[%clk 0:02:38.4]} 15. Bd3 {[%clk 0:02:36.9]} 15...
h6 {[%clk 0:02:27.5]} 16. Ne5 {[%clk 0:02:29.6]} 16... c5 {[%clk 0:02:23.4]} 17.
Rfe1 {[%clk 0:02:13.4]} 17... cxd4 {[%clk 0:02:19.9]} 18. Bxd4 {[%clk 0:02:13]}
18... Rfd8 {[%clk 0:02:18.1]} 19. Bb2 {[%clk 0:02:06.1]} 19... Bb4 {[%clk
0:01:59.4]} 20. Re2 {[%clk 0:01:58.2]} 20... Ba8 {[%clk 0:01:50.3]} 21. h3
{[%clk 0:01:50]} 21... Qb7 {[%clk 0:01:42.5]} 22. Nf3 {[%clk 0:01:47.3]} 22...
Nh5 {[%clk 0:01:30.9]} 23. Be4 {[%clk 0:01:40.9]} 23... Qe7 {[%clk 0:01:06.5]}
24. Bxa8 {[%clk 0:01:37.6]} 24... Rxa8 {[%clk 0:01:07.4]} 25. Re3 {[%clk
0:01:27.2]} 25... Nf4 {[%clk 0:00:58.6]} 26. Be5 {[%clk 0:01:21.6]} 26... Ng6
{[%clk 0:00:44.8]} 27. Bc3 {[%clk 0:01:16.8]} 27... Bxc3 {[%clk 0:00:42.3]} 28.
Rxc3 {[%clk 0:01:16.4]} 28... Nf4 {[%clk 0:00:40.3]} 29. Kh2 {[%clk 0:00:52.9]}
29... Qc7 {[%clk 0:00:38.9]} 30. g3 {[%clk 0:00:51.5]} 30... Nh5 {[%clk
0:00:36.4]} 31. Rcd3 {[%clk 0:00:49.8]} 31... Nf6 {[%clk 0:00:32.4]} 32. R1d2
{[%clk 0:00:44.7]} 32... Rxd3 {[%clk 0:00:30.4]} 33. Qxd3 {[%clk 0:00:43.9]}
33... g5 {[%clk 0:00:27.2]} 34. Qd6 {[%clk 0:00:41.9]} 34... Qxd6 {[%clk
0:00:25.6]} 35. Rxd6 {[%clk 0:00:41.9]} 35... Ne4 {[%clk 0:00:26]} 36. Rd7
{[%clk 0:00:41.5]} 36... Nxf2 {[%clk 0:00:22.5]} 37. Ne5 {[%clk 0:00:41.7]}
37... f6 {[%clk 0:00:20]} 38. Ng4 {[%clk 0:00:41.3]} 38... Nxg4+ {[%clk
0:00:17.7]} 39. hxg4 {[%clk 0:00:41.5]} 39... f5 {[%clk 0:00:13.1]} 40. gxf5
{[%clk 0:00:37.8]} 40... exf5 {[%clk 0:00:14]} 41. Kg2 {[%clk 0:00:36.5]} 41...
Re8 {[%clk 0:00:12.5]} 42. Rxa7 {[%clk 0:00:33.6]} 42... Re2+ {[%clk 0:00:11.4]}
43. Kf3 {[%clk 0:00:33.9]} 43... Rc2 {[%clk 0:00:09.7]} 44. Ra6 {[%clk
0:00:27.7]} 44... h5 {[%clk 0:00:09.5]} 45. Rxb6 {[%clk 0:00:26.3]} 45... Kf7
{[%clk 0:00:09.4]} 46. Rh6 {[%clk 0:00:24]} 46... Rxa2 {[%clk 0:00:08.1]} 47.
Rxh5 {[%clk 0:00:23.8]} 47... Kg6 {[%clk 0:00:08]} 48. Rh8 {[%clk 0:00:23.3]}
48... Rb2 {[%clk 0:00:07.5]} 49. Rb8 {[%clk 0:00:23.4]} 49... g4+ {[%clk
0:00:07.4]} 50. Kf4 {[%clk 0:00:22.3]} 50... Rf2+ {[%clk 0:00:07.1]} 51. Ke5
{[%clk 0:00:22.7]} 51... Rf3 {[%clk 0:00:06.5]} 52. Rb7 {[%clk 0:00:22.2]} 52...
Rxg3 {[%clk 0:00:05.9]} 53. Rb6+ {[%clk 0:00:22.5]} 53... Kg5 {[%clk 0:00:05.6]}
54. Rb8 {[%clk 0:00:22.5]} 54... Re3+ {[%clk 0:00:05.5]} 55. Kd4 {[%clk
0:00:22.9]} 55... Re1 {[%clk 0:00:04.7]} 56. Rg8+ {[%clk 0:00:22.3]} 56... Kf4
{[%clk 0:00:04.5]} 57. c5 {[%clk 0:00:22.6]} 57... Rd1+ {[%clk 0:00:04.6]} 58.
Kc4 {[%clk 0:00:22.6]} 58... g3 {[%clk 0:00:04.9]} 59. c6 {[%clk 0:00:22.2]}
59... Rc1+ {[%clk 0:00:04.3]} 60. Kb5 {[%clk 0:00:22.3]} 60... Kf3 {[%clk
0:00:05.2]} 61. Kb6 {[%clk 0:00:20.9]} 61... g2 {[%clk 0:00:04.6]} 62. b4 {[%clk
0:00:20.3]} 62... g1=Q+ {[%clk 0:00:03.6]} 63. Rxg1 {[%clk 0:00:19.8]} 63...
Rxg1 {[%clk 0:00:04.5]} 64. c7 {[%clk 0:00:19.5]} 64... Rc1 {[%clk 0:00:04.2]}
65. Kb7 {[%clk 0:00:19.6]} 65... f4 {[%clk 0:00:04.5]} 66. b5 {[%clk 0:00:19.3]}
66... Ke4 {[%clk 0:00:02.7]} 67. b6 {[%clk 0:00:19.6]} 67... f3 {[%clk
0:00:02.7]} 68. c8=Q {[%clk 0:00:19.9]} 68... Rxc8 {[%clk 0:00:01.7]} 69. Kxc8
{[%clk 0:00:20.5]} 69... f2 {[%clk 0:00:02.6]} 70. b7 {[%clk 0:00:21]} 70...
f1=Q {[%clk 0:00:02.7]} 71. b8=Q {[%clk 0:00:21.2]} 71... Qc4+ {[%clk
0:00:02.7]} 72. Qc7 {[%clk 0:00:21]} 72... Qxc7+ {[%clk 0:00:02.2]} 73. Kxc7
{[%clk 0:00:21.2]} 1/2-1/2

[Event "*** SCC Grand Prix: Titled Tuesday Blitz"]
[Site "Chess.com"]
[Date "2020.07.14"]
[Round "9"]
[White "kirillshevchenko"]
[Black "Sanan_Sjugirov"]
[Result "0-1"]
[WhiteElo "2933"]
[BlackElo "2990"]
[TimeControl "180+1"]
[EndTime "11:49:36 PDT"]
[Termination "Sanan_Sjugirov won by resignation"]

1. e4 {[%clk 0:03:00.9]} 1... c5 {[%clk 0:02:57.9]} 2. Nf3 {[%clk 0:03:01.3]}
2... Nc6 {[%clk 0:02:57.9]} 3. Nc3 {[%clk 0:03:01]} 3... Nf6 {[%clk 0:02:55.7]}
4. Bb5 {[%clk 0:03:00.4]} 4... Qc7 {[%clk 0:02:55.4]} 5. O-O {[%clk 0:02:59.7]}
5... Nd4 {[%clk 0:02:52.5]} 6. Re1 {[%clk 0:02:59.8]} 6... Ng4 {[%clk
0:02:48.7]} 7. e5 {[%clk 0:02:53.1]} 7... h5 {[%clk 0:02:27]} 8. Bf1 {[%clk
0:02:02.6]} 8... a6 {[%clk 0:01:58.7]} 9. Nxd4 {[%clk 0:01:58.9]} 9... cxd4
{[%clk 0:01:58.3]} 10. Nd5 {[%clk 0:01:59.5]} 10... Qc5 {[%clk 0:01:50.3]} 11.
Nf4 {[%clk 0:01:21.8]} 11... Nxe5 {[%clk 0:01:45.6]} 12. b4 {[%clk 0:01:13.3]}
12... Qd6 {[%clk 0:01:44.9]} 13. Bb2 {[%clk 0:01:11.4]} 13... Ng4 {[%clk
0:01:23.4]} 14. g3 {[%clk 0:01:10.6]} 14... g5 {[%clk 0:01:04]} 15. Nd3 {[%clk
0:01:05.3]} 15... Bg7 {[%clk 0:00:59.2]} 16. Bg2 {[%clk 0:00:58.7]} 16... Rb8
{[%clk 0:00:41.2]} 17. h3 {[%clk 0:00:54.7]} 17... Ne5 {[%clk 0:00:35.8]} 18.
Nxe5 {[%clk 0:00:51.6]} 18... Bxe5 {[%clk 0:00:36.7]} 19. Qe2 {[%clk 0:00:46.9]}
19... Bf6 {[%clk 0:00:36.1]} 20. Qd3 {[%clk 0:00:27]} 20... h4 {[%clk
0:00:33.7]} 21. Re4 {[%clk 0:00:23]} 21... hxg3 {[%clk 0:00:32.4]} 22. fxg3
{[%clk 0:00:23.9]} 22... Qxb4 {[%clk 0:00:18.8]} 23. Bxd4 {[%clk 0:00:23]} 23...
Bxd4+ {[%clk 0:00:18]} 24. Rxd4 {[%clk 0:00:22.7]} 24... Qc5 {[%clk 0:00:16]}
25. Re1 {[%clk 0:00:22.5]} 25... e6 {[%clk 0:00:11.6]} 26. Kh2 {[%clk
0:00:21.5]} 26... b5 {[%clk 0:00:11.4]} 27. Qe3 {[%clk 0:00:12.5]} 27... Bb7
{[%clk 0:00:04.7]} 28. Bxb7 {[%clk 0:00:11.6]} 28... Rxb7 {[%clk 0:00:05]} 29.
c3 {[%clk 0:00:12.2]} 29... Rc7 {[%clk 0:00:04.9]} 30. Rf1 {[%clk 0:00:11.7]}
30... Qc6 {[%clk 0:00:03]} 31. Qf2 {[%clk 0:00:11.6]} 31... Rf8 {[%clk 0:00:03]}
32. Qf6 {[%clk 0:00:11.6]} 32... Qc5 {[%clk 0:00:03.1]} 33. Re4 {[%clk
0:00:10.3]} 33... Qe7 {[%clk 0:00:03]} 34. Qd4 {[%clk 0:00:09]} 34... Qc5 {[%clk
0:00:02.6]} 35. Qg7 {[%clk 0:00:08.7]} 35... a5 {[%clk 0:00:02.6]} 36. Rg4
{[%clk 0:00:08.4]} 36... Qe7 {[%clk 0:00:02.6]} 37. Rxg5 {[%clk 0:00:08.7]}
37... Rc5 {[%clk 0:00:02.7]} 38. Rg4 {[%clk 0:00:07.6]} 38... Rd5 {[%clk
0:00:02.6]} 39. d4 {[%clk 0:00:07.1]} 39... f5 {[%clk 0:00:02.7]} 40. Qg6+
{[%clk 0:00:05.1]} 40... Kd8 {[%clk 0:00:02.8]} 41. Rh4 {[%clk 0:00:04.5]} 41...
Qa3 {[%clk 0:00:02.8]} 42. Qg5+ {[%clk 0:00:04.3]} 42... Kc7 {[%clk 0:00:03]}
43. Qd2 {[%clk 0:00:04.9]} 43... Rc8 {[%clk 0:00:01.6]} 44. Rh7 {[%clk
0:00:03.6]} 44... Qa4 {[%clk 0:00:02.2]} 45. g4 {[%clk 0:00:03]} 45... Qc4
{[%clk 0:00:02.5]} 46. Rf2 {[%clk 0:00:01.6]} 46... Kb7 {[%clk 0:00:03]} 47.
gxf5 {[%clk 0:00:01.5]} 47... exf5 {[%clk 0:00:03.6]} 48. Rf7 {[%clk 0:00:01.8]}
48... Qxc3 {[%clk 0:00:03.7]} 49. Qxc3 {[%clk 0:00:02.4]} 49... Rxc3 {[%clk
0:00:04.6]} 50. R2xf5 {[%clk 0:00:02.7]} 50... Rxf5 {[%clk 0:00:04.8]} 51. Rxf5
{[%clk 0:00:03.6]} 51... Kb6 {[%clk 0:00:05.3]} 52. h4 {[%clk 0:00:03.5]} 52...
Rc2+ {[%clk 0:00:05.5]} 53. Kg3 {[%clk 0:00:03.8]} 53... Rxa2 {[%clk 0:00:06.3]}
54. h5 {[%clk 0:00:02.5]} 54... Ra1 {[%clk 0:00:06.7]} 55. Rf6+ {[%clk
0:00:02.4]} 55... d6 {[%clk 0:00:06.3]} 56. Rxd6+ {[%clk 0:00:02.1]} 56... Kb7
{[%clk 0:00:06.8]} 57. Rd5 {[%clk 0:00:02.1]} 57... Kb6 {[%clk 0:00:06.7]} 58.
h6 {[%clk 0:00:02.5]} 58... Rh1 {[%clk 0:00:06.2]} 59. Rd6+ {[%clk 0:00:02.8]}
59... Kb7 {[%clk 0:00:06.7]} 60. Rd5 {[%clk 0:00:03.1]} 60... Kc6 {[%clk
0:00:07]} 61. Rc5+ {[%clk 0:00:01.9]} 61... Kb6 {[%clk 0:00:07.6]} 62. Kf4
{[%clk 0:00:01.5]} 62... Rxh6 {[%clk 0:00:07.5]} 63. Ke4 {[%clk 0:00:01.5]}
63... a4 {[%clk 0:00:07]} 64. Kd3 {[%clk 0:00:01.6]} 64... Ka5 {[%clk
0:00:07.5]} 65. Rc8 {[%clk 0:00:01.8]} 65... Kb4 {[%clk 0:00:06.5]} 66. d5
{[%clk 0:00:02.2]} 66... Rh3+ {[%clk 0:00:06.5]} 67. Kd4 {[%clk 0:00:02.6]}
67... Rh4+ {[%clk 0:00:07.4]} 68. Ke5 {[%clk 0:00:03.1]} 68... Rh1 {[%clk
0:00:07.9]} 69. d6 {[%clk 0:00:03.2]} 69... Rd1 {[%clk 0:00:08]} 70. Ke6 {[%clk
0:00:02.8]} 70... a3 {[%clk 0:00:08.4]} 71. d7 {[%clk 0:00:02.4]} 71... a2
{[%clk 0:00:08.4]} 72. Ra8 {[%clk 0:00:02.6]} 72... Kb3 {[%clk 0:00:08.8]} 73.
Ra6 {[%clk 0:00:03.1]} 73... Rxd7 {[%clk 0:00:07.9]} 74. Kxd7 {[%clk 0:00:02.9]}
74... Kb2 {[%clk 0:00:07.6]} 75. Kc6 {[%clk 0:00:03.2]} 75... b4 {[%clk
0:00:07.9]} 76. Kb5 {[%clk 0:00:03.2]} 76... b3 {[%clk 0:00:08.4]} 77. Kb4
{[%clk 0:00:03.7]} 77... Kc2 {[%clk 0:00:07.9]} 78. Ra8 {[%clk 0:00:02.7]} 78...
Kb2 {[%clk 0:00:06.2]} 79. Ra3 {[%clk 0:00:02]} 79... Kc2 {[%clk 0:00:05.5]} 80.
Ra8 {[%clk 0:00:01.9]} 80... Kb1 {[%clk 0:00:03.1]} 81. Ra3 {[%clk 0:00:01.8]}
81... b2 {[%clk 0:00:03]} 82. Rh3 {[%clk 0:00:01.8]} 82... a1=Q {[%clk
0:00:03.4]} 83. Kb3 {[%clk 0:00:02.3]} 83... Qa2+ {[%clk 0:00:03.4]} 84. Kb4
{[%clk 0:00:02.8]} 84... Qd5 {[%clk 0:00:03.9]} 85. Rh2 {[%clk 0:00:02.6]} 85...
Qe4+ {[%clk 0:00:04.2]} 86. Ka5 {[%clk 0:00:02.7]} 86... Qd3 {[%clk 0:00:04.4]}
87. Rh1+ {[%clk 0:00:02.3]} 87... Ka2 {[%clk 0:00:04.6]} 88. Rh2 {[%clk
0:00:03.2]} 88... Qc3+ {[%clk 0:00:04.9]} 89. Ka4 {[%clk 0:00:02.8]} 89... Ka1
{[%clk 0:00:05.8]} 90. Rh3 {[%clk 0:00:02.4]} 90... Qxh3 {[%clk 0:00:05.4]} 0-1

[Event "*** SCC Grand Prix: Titled Tuesday Blitz"]
[Site "Chess.com"]
[Date "2020.07.14"]
[Round "9"]
[White "Aguiar94"]
[Black "margarita_2703"]
[Result "1/2-1/2"]
[WhiteElo "2534"]
[BlackElo "2392"]
[TimeControl "180+1"]
[EndTime "11:49:49 PDT"]
[Termination "Game drawn - insufficient material"]

1. e4 {[%clk 0:03:00.9]} 1... Nf6 {[%clk 0:02:58]} 2. e5 {[%clk 0:03:00.7]} 2...
Nd5 {[%clk 0:02:57.5]} 3. d4 {[%clk 0:03:01.6]} 3... d6 {[%clk 0:02:57.1]} 4.
Nf3 {[%clk 0:02:56.6]} 4... g6 {[%clk 0:02:56.3]} 5. Bc4 {[%clk 0:02:56]} 5...
Nb6 {[%clk 0:02:55.9]} 6. Bb3 {[%clk 0:02:56.5]} 6... Bg7 {[%clk 0:02:54.9]} 7.
Ng5 {[%clk 0:02:57.1]} 7... O-O {[%clk 0:02:51]} 8. Qf3 {[%clk 0:02:56.8]} 8...
d5 {[%clk 0:02:45.5]} 9. O-O {[%clk 0:02:54.2]} 9... h6 {[%clk 0:02:41.6]} 10.
Nh3 {[%clk 0:02:53.4]} 10... c5 {[%clk 0:02:33.3]} 11. dxc5 {[%clk 0:02:52.2]}
11... Nc4 {[%clk 0:02:32.9]} 12. Nc3 {[%clk 0:02:40.6]} 12... Nxe5 {[%clk
0:02:15.6]} 13. Qxd5 {[%clk 0:02:38]} 13... Qxd5 {[%clk 0:02:08]} 14. Nxd5
{[%clk 0:02:36.7]} 14... Nbc6 {[%clk 0:02:08]} 15. Nhf4 {[%clk 0:02:31.3]} 15...
e6 {[%clk 0:02:04.6]} 16. Nc7 {[%clk 0:02:28.8]} 16... Rb8 {[%clk 0:02:03.1]}
17. Nb5 {[%clk 0:02:29.1]} 17... b6 {[%clk 0:01:59]} 18. cxb6 {[%clk 0:02:24.7]}
18... Rxb6 {[%clk 0:01:58.5]} 19. a4 {[%clk 0:02:19.5]} 19... a6 {[%clk
0:01:52]} 20. Be3 {[%clk 0:02:11.5]} 20... Rb8 {[%clk 0:01:48.1]} 21. Nd6 {[%clk
0:02:09.7]} 21... Ng4 {[%clk 0:01:39.4]} 22. Bc5 {[%clk 0:01:51]} 22... Bxb2
{[%clk 0:01:36.3]} 23. Rab1 {[%clk 0:01:49.5]} 23... Be5 {[%clk 0:01:30.5]} 24.
g3 {[%clk 0:01:39.8]} 24... Rd8 {[%clk 0:01:25.4]} 25. Nxc8 {[%clk 0:01:33]}
25... Rbxc8 {[%clk 0:01:24.4]} 26. Nxg6 {[%clk 0:01:27.8]} 26... Bd6 {[%clk
0:01:20]} 27. Bxd6 {[%clk 0:01:23.7]} 27... Rxd6 {[%clk 0:01:19.3]} 28. Nf4
{[%clk 0:01:24.2]} 28... Nd4 {[%clk 0:01:10.4]} 29. Kg2 {[%clk 0:01:17.1]} 29...
Nxb3 {[%clk 0:01:07]} 30. cxb3 {[%clk 0:01:16.5]} 30... Rd2 {[%clk 0:01:03.8]}
31. Kg1 {[%clk 0:01:02]} 31... Rcc2 {[%clk 0:01:02.6]} 32. Nh3 {[%clk
0:01:02.4]} 32... Rb2 {[%clk 0:01:00.9]} 33. b4 {[%clk 0:01:01.4]} 33... Nxf2
{[%clk 0:00:46.4]} 34. Nxf2 {[%clk 0:01:00.1]} 34... Rxf2 {[%clk 0:00:45.2]} 35.
Rxb2 {[%clk 0:00:55.2]} 35... Rxb2 {[%clk 0:00:44.5]} 36. Rf4 {[%clk 0:00:55]}
36... Ra2 {[%clk 0:00:41.6]} 37. a5 {[%clk 0:00:53.8]} 37... Kg7 {[%clk
0:00:38.7]} 38. Rc4 {[%clk 0:00:54]} 38... Rb2 {[%clk 0:00:35.8]} 39. Rc6 {[%clk
0:00:53.3]} 39... Rxb4 {[%clk 0:00:33.5]} 40. Kg2 {[%clk 0:00:50.3]} 40... Rb2+
{[%clk 0:00:31.6]} 41. Kh3 {[%clk 0:00:45.4]} 41... Ra2 {[%clk 0:00:29.4]} 42.
Rxa6 {[%clk 0:00:45.7]} 42... Ra4 {[%clk 0:00:28.9]} 43. Ra8 {[%clk 0:00:45]}
43... e5 {[%clk 0:00:26.9]} 44. a6 {[%clk 0:00:43.5]} 44... e4 {[%clk
0:00:26.5]} 45. Kg4 {[%clk 0:00:43.6]} 45... Ra3 {[%clk 0:00:23.1]} 46. a7
{[%clk 0:00:41.6]} 46... Kf6 {[%clk 0:00:18.5]} 47. Kf4 {[%clk 0:00:39.8]} 47...
Ra4 {[%clk 0:00:17.5]} 48. g4 {[%clk 0:00:35]} 48... Kg7 {[%clk 0:00:17.2]} 49.
h4 {[%clk 0:00:34.6]} 49... Kf6 {[%clk 0:00:16.8]} 50. Ke3 {[%clk 0:00:31.7]}
50... Kg7 {[%clk 0:00:16.2]} 51. g5 {[%clk 0:00:28.6]} 51... hxg5 {[%clk
0:00:15.8]} 52. hxg5 {[%clk 0:00:29.5]} 52... Ra3+ {[%clk 0:00:15.4]} 53. Kxe4
{[%clk 0:00:29.2]} 53... Ra4+ {[%clk 0:00:15.9]} 54. Kd3 {[%clk 0:00:28.9]}
54... Ra3+ {[%clk 0:00:15.9]} 55. Kc4 {[%clk 0:00:29]} 55... Ra1 {[%clk
0:00:15.9]} 56. Kb3 {[%clk 0:00:27.3]} 56... Ra6 {[%clk 0:00:14.8]} 57. Kb4
{[%clk 0:00:27]} 57... Ra1 {[%clk 0:00:14.5]} 58. Kb5 {[%clk 0:00:27.2]} 58...
Rb1+ {[%clk 0:00:14.5]} 59. Kc6 {[%clk 0:00:27.2]} 59... Rc1+ {[%clk 0:00:14.5]}
60. Kd5 {[%clk 0:00:27.5]} 60... Rd1+ {[%clk 0:00:14.5]} 61. Ke4 {[%clk
0:00:27.4]} 61... Re1+ {[%clk 0:00:14.6]} 62. Kf5 {[%clk 0:00:27.4]} 62... Rf1+
{[%clk 0:00:14.6]} 63. Kg4 {[%clk 0:00:27.1]} 63... Ra1 {[%clk 0:00:15.1]} 64.
Kh5 {[%clk 0:00:26.2]} 64... Ra6 {[%clk 0:00:14.7]} 65. Kg4 {[%clk 0:00:24.9]}
65... Ra4+ {[%clk 0:00:14.6]} 66. Kf5 {[%clk 0:00:23]} 66... Ra5+ {[%clk
0:00:14.5]} 67. Ke4 {[%clk 0:00:23.3]} 67... Ra4+ {[%clk 0:00:14.7]} 68. Kd5
{[%clk 0:00:23.7]} 68... Ra5+ {[%clk 0:00:15]} 69. Kc6 {[%clk 0:00:23.8]} 69...
Ra1 {[%clk 0:00:14.9]} 70. Kb7 {[%clk 0:00:17.1]} 70... Rb1+ {[%clk 0:00:15]}
71. Kc7 {[%clk 0:00:17.6]} 71... Rc1+ {[%clk 0:00:15.1]} 72. Kd6 {[%clk
0:00:18]} 72... Rd1+ {[%clk 0:00:15.3]} 73. Kc5 {[%clk 0:00:17.6]} 73... Rc1+
{[%clk 0:00:15.3]} 74. Kd4 {[%clk 0:00:17.5]} 74... Ra1 {[%clk 0:00:15.1]} 75.
Kc3 {[%clk 0:00:14.4]} 75... Ra6 {[%clk 0:00:14.3]} 76. Kb3 {[%clk 0:00:13.9]}
76... Ra1 {[%clk 0:00:13.7]} 77. Kb2 {[%clk 0:00:13.7]} 77... Ra6 {[%clk
0:00:13.4]} 78. Kb3 {[%clk 0:00:13.9]} 78... Ra1 {[%clk 0:00:13.3]} 79. Kb4
{[%clk 0:00:14.1]} 79... Rb1+ {[%clk 0:00:12.6]} 80. Kc4 {[%clk 0:00:14]} 80...
Ra1 {[%clk 0:00:12.6]} 81. Kb3 {[%clk 0:00:13.7]} 81... Ra6 {[%clk 0:00:11.8]}
82. Kb4 {[%clk 0:00:13.6]} 82... Ra1 {[%clk 0:00:11.6]} 83. g6 {[%clk
0:00:14.5]} 83... fxg6 {[%clk 0:00:09.9]} 84. Kb5 {[%clk 0:00:13.9]} 84... g5
{[%clk 0:00:09.8]} 85. Kc4 {[%clk 0:00:13.8]} 85... Rc1+ {[%clk 0:00:09.6]} 86.
Kd3 {[%clk 0:00:14]} 86... Ra1 {[%clk 0:00:09.5]} 87. Ke4 {[%clk 0:00:14.3]}
87... Ra4+ {[%clk 0:00:09.4]} 88. Kf5 {[%clk 0:00:14.3]} 88... g4 {[%clk
0:00:09.5]} 89. Ke5 {[%clk 0:00:09.1]} 89... g3 {[%clk 0:00:09.4]} 90. Rd8
{[%clk 0:00:07.6]} 90... Rxa7 {[%clk 0:00:08.6]} 91. Rd3 {[%clk 0:00:07.4]}
91... Ra5+ {[%clk 0:00:08.4]} 92. Kf4 {[%clk 0:00:07.2]} 92... Kf6 {[%clk
0:00:08.3]} 93. Rxg3 {[%clk 0:00:07.6]} 93... Ra4+ {[%clk 0:00:08.2]} 94. Ke3
{[%clk 0:00:07.9]} 94... Ra3+ {[%clk 0:00:08.5]} 95. Kf2 {[%clk 0:00:08.8]}
95... Rxg3 {[%clk 0:00:08.4]} 96. Kxg3 {[%clk 0:00:09.7]} 1/2-1/2